bitfinex/quotes_BTCUSD_20250829
["timestamp","ask_amount","ask_price","bid_price","bid_amount"]
[1756463251609,0.02547078,110230.0,110220.0,0.32029635]
[1756463251827,0.03966997,110230.0,110220.0,0.82039671]
[1756463252028,0.02547078,110230.0,110220.0,0.82039671]
[1756463252240,0.02547078,110230.0,110220.0,0.47325635]
[1756463252416,0.02547078,110230.0,110220.0,0.82035671]
[1756463253248,0.01699686,110230.0,110220.0,0.82035671]
[1756463253495,0.02549928,110230.0,110220.0,0.82035671]
[1756463254277,0.02549928,110230.0,110220.0,0.66743671]
[1756463254480,0.03186533,110230.0,110220.0,0.82035671]
[1756463254913,0.03186533,110230.0,110220.0,0.47321635]
[1756463255130,0.39320506,110230.0,110220.0,0.23001003]
[1756463255339,0.0460647,110230.0,110220.0,0.38495003]
[1756463256088,0.0460647,110230.0,110220.0,0.38412403]
[1756463256929,0.0460647,110230.0,110220.0,0.37913403]
[1756463257153,0.0460647,110230.0,110220.0,0.38209403]
[1756463257368,0.0460647,110230.0,110220.0,0.38411403]
[1756463257860,0.0460647,110230.0,110220.0,0.38311403]
[1756463258292,0.0460647,110230.0,110220.0,0.37720594]
[1756463258908,0.0460647,110230.0,110220.0,0.37418594]
[1756463259656,0.0460647,110230.0,110220.0,0.37620594]
[1756463260497,0.04607354,110230.0,110220.0,0.37620594]
[1756463262176,0.03187417,110230.0,110220.0,0.37620594]
[1756463263874,0.03187417,110230.0,110220.0,0.46450226]
[1756463264086,0.03193173,110230.0,110220.0,0.46450226]
[1756463264315,0.03193173,110230.0,110220.0,0.37620594]
[1756463266669,0.04613171,110230.0,110220.0,0.37620594]
[1756463267684,0.0461415,110230.0,110220.0,0.37620594]
[1756463270262,0.0461415,110230.0,110220.0,0.22328594]
[1756463270475,0.0461415,110230.0,110220.0,0.37616594]
[1756463271306,0.04614759,110230.0,110220.0,0.22328594]
[1756463271484,0.04614759,110230.0,110220.0,0.37616594]
[1756463272759,0.63492635,110230.0,110220.0,0.04387163]
[1756463272958,0.65453298,110230.0,110220.0,0.15288]
[1756463273358,0.63492635,110230.0,110220.0,0.14697136]
[1756463273522,0.57472675,110230.0,110220.0,0.19084299]
[1756463273921,0.60201375,110230.0,110220.0,0.19084299]
[1756463274119,0.60201375,110230.0,110220.0,0.37229826]
[1756463274726,0.60202001,110230.0,110220.0,0.37229826]
[1756463274915,0.60202433,110230.0,110220.0,0.37229826]
[1756463275622,0.60202433,110230.0,110220.0,0.19084299]
[1756463275820,0.60202433,110230.0,110220.0,0.04387163]
[1756463275821,1.02036916,110230.0,110220.0,0.04387163]
[1756463276048,1.02577463,110230.0,110220.0,0.19675163]
[1756463277858,0.67863427,110230.0,110220.0,0.19675163]
[1756463278055,1.02577463,110230.0,110220.0,0.19675163]
[1756463278488,0.52145527,110220.0,110210.0,0.11367163]
[1756463278680,6.70268089,110220.0,110210.0,0.26655163]
[1756463278838,6.70268089,110220.0,110210.0,0.15288]
[1756463279041,6.70268089,110220.0,110210.0,0.19675163]
[1756463279288,6.72997389,110220.0,110210.0,0.19675163]
[1756463279922,6.73597389,110220.0,110210.0,0.19675163]
[1756463280294,0.52147173,110210.0,110200.0,0.04387163]
[1756463280497,0.52147173,110210.0,110190.0,0.11367163]
[1756463280498,0.5214882,110200.0,110190.0,0.11367163]
[1756463280775,0.90053133,110200.0,110190.0,0.26655163]
[1756463280971,0.92012172,110200.0,110190.0,0.26655163]
[1756463281117,0.94741772,110200.0,110190.0,0.26655163]
[1756463281321,1.02576255,110200.0,110190.0,0.26655163]
[1756463282300,1.04259799,110200.0,110190.0,0.26655163]
[1756463283214,1.04359799,110200.0,110190.0,0.26655163]
[1756463283616,1.04359799,110200.0,110190.0,0.22268]
[1756463283824,1.04359799,110200.0,110190.0,0.26655163]
[1756463284220,1.03608854,110200.0,110190.0,0.26655163]
[1756463284448,1.0586975,110200.0,110190.0,0.26655163]
[1756463285270,1.05869129,110200.0,110190.0,0.26655163]
[1756463286213,1.05869129,110200.0,110190.0,0.19675163]
[1756463288013,1.05868102,110200.0,110190.0,0.19675163]
[1756463289111,0.71154066,110200.0,110190.0,0.19675163]
[1756463289342,1.05868102,110200.0,110190.0,0.19675163]
[1756463292280,1.05868102,110200.0,110190.0,0.19973163]
[1756463295443,1.05866318,110200.0,110190.0,0.19973163]
[1756463295876,1.05866318,110200.0,110190.0,0.20174163]
[1756463296310,0.71152282,110200.0,110190.0,0.20174163]
[1756463296519,1.05866318,110200.0,110190.0,0.20174163]
[1756463297910,1.05783918,110200.0,110190.0,0.20174163]
[1756463298395,1.07735603,110200.0,110190.0,0.20174163]
[1756463301118,1.07735603,110200.0,110190.0,0.19583073]
[1756463302283,1.06887704,110200.0,110190.0,0.19583073]
[1756463302501,1.07736152,110200.0,110190.0,0.19583073]
[1756463302699,0.73022116,110200.0,110190.0,0.19583073]
[1756463302947,0.65187633,110200.0,110190.0,0.3773354]
[1756463303093,0.65270033,110200.0,110190.0,0.2303663]
[1756463303295,0.61897741,110200.0,110190.0,0.04886163]
[1756463303535,0.37013964,110200.0,110190.0,0.20174163]
[1756463303770,0.62611777,110200.0,110190.0,0.20174163]
[1756463304161,0.70687672,110200.0,110190.0,0.20174163]
[1756463304371,0.72643915,110200.0,110190.0,0.20174163]
[1756463305768,0.69467177,110200.0,110190.0,0.20174163]
[1756463305965,0.72653289,110200.0,110190.0,0.20174163]
[1756463306173,0.64577394,110200.0,110190.0,0.20174163]
[1756463306404,0.29864147,110200.0,110190.0,0.04886163]
[1756463306573,0.64578183,110200.0,110190.0,0.20174163]
[1756463307042,0.64578183,110200.0,110190.0,0.3832463]
[1756463307331,0.29864705,110200.0,110190.0,0.3832463]
[1756463307530,0.63728102,110200.0,110190.0,0.20174163]
[1756463307768,0.70571502,110200.0,110190.0,0.04886163]
[1756463307977,0.70571502,110200.0,110190.0,0.20170163]
[1756463308218,0.70572271,110200.0,110190.0,0.20170163]
[1756463308424,0.72913643,110200.0,110190.0,0.20170163]
[1756463308886,0.72913643,110200.0,110190.0,0.04685163]
[1756463309086,0.98584062,110200.0,110190.0,0.04387163]
[1756463310363,0.97732654,110200.0,110190.0,0.04387163]
[1756463310489,0.98584363,110200.0,110190.0,0.04387163]
[1756463310688,1.07413995,110200.0,110190.0,0.04387163]
[1756463311508,1.07413995,110200.0,110190.0,0.19975163]
[1756463311947,1.07413995,110200.0,110190.0,0.20182163]
[1756463312687,1.07413995,110200.0,110190.0,0.19671163]
[1756463313268,1.07413995,110200.0,110190.0,0.19975163]
[1756463313620,1.09852182,110200.0,110190.0,0.19088534]
[1756463314136,1.25136819,110200.0,110190.0,0.03500534]
[1756463314364,0.52150467,110190.0,110180.0,0.15588]
[1756463314584,1.70272168,110190.0,110180.0,0.15795]
[1756463314791,1.72710355,110190.0,110180.0,0.02318353]
[1756463314999,0.52152114,110180.0,110170.0,0.17906353]
[1756463315256,0.92016111,110180.0,110170.0,0.17906353]
[1756463315660,0.94459071,110180.0,110170.0,0.17906353]
[1756463315852,1.03288703,110180.0,110170.0,0.17906353]
[1756463316086,1.00850516,110180.0,110170.0,0.17906353]
[1756463316217,1.03500703,110180.0,110170.0,0.17315165]
[1756463316430,1.03700703,110180.0,110170.0,0.17315165]
[1756463317310,1.01262516,110180.0,110170.0,0.17315165]
[1756463317539,1.01260955,110180.0,110170.0,0.17315165]
[1756463318098,0.9892004,110180.0,110170.0,0.17315165]
[1756463318300,1.01260543,110180.0,110170.0,0.17315165]
[1756463318509,1.03990643,110180.0,110170.0,0.17315165]
[1756463319461,1.04279643,110180.0,110170.0,0.02318353]
[1756463319665,0.52153762,110170.0,110160.0,0.02622353]
[1756463319788,1.00845418,110170.0,110160.0,0.02318353]
[1756463319989,1.03784605,110170.0,110160.0,0.17602353]
[1756463320196,1.03495605,110170.0,110160.0,0.17602353]
[1756463320853,0.68781569,110170.0,110160.0,0.17602353]
[1756463321055,1.03495605,110170.0,110160.0,0.17602353]
[1756463321196,1.03493566,110170.0,110160.0,0.17602353]
[1756463321814,1.03493566,110170.0,110160.0,0.17702353]
[1756463322267,1.01055379,110170.0,110160.0,0.17602353]
[1756463322670,1.01155379,110170.0,110160.0,0.17602353]
[1756463322895,1.01255379,110170.0,110160.0,0.17602353]
[1756463323412,1.01355379,110170.0,110160.0,0.17602353]
[1756463323932,0.66641343,110170.0,110160.0,0.17602353]
[1756463324134,1.01355379,110170.0,110160.0,0.17602353]
[1756463324805,1.01352879,110170.0,110160.0,0.17602353]
[1756463325013,1.01352879,110170.0,110160.0,0.15284]
[1756463325220,1.04083379,110170.0,110160.0,0.17602353]
[1756463326580,1.04083379,110170.0,110160.0,0.17809353]
[1756463326789,0.26327711,110170.0,110160.0,0.36268763]
[1756463328251,0.20884262,110170.0,110160.0,0.36268763]
[1756463328432,0.24068708,110170.0,110160.0,0.36268763]
[1756463328668,0.24068708,110170.0,110160.0,0.18113353]
[1756463328869,0.58068708,110170.0,110160.0,0.18113353]
[1756463329309,0.6689834,110170.0,110160.0,0.18113353]
[1756463329488,1.01612376,110170.0,110160.0,0.18113353]
[1756463330671,1.01813376,110170.0,110160.0,0.18113353]
[1756463330928,1.04069828,110170.0,110160.0,0.02318353]
[1756463331139,1.04069828,110170.0,110160.0,0.17602353]
[1756463332280,1.04169828,110170.0,110160.0,0.17602353]
[1756463332907,1.04269828,110170.0,110160.0,0.17602353]
[1756463333310,1.04069828,110170.0,110160.0,0.17602353]
[1756463334707,1.04169828,110170.0,110160.0,0.17602353]
[1756463334967,1.04269828,110170.0,110160.0,0.17602353]
[1756463335172,1.05690841,110170.0,110160.0,0.17602353]
[1756463335509,1.05691042,110170.0,110160.0,0.17602353]
[1756463337169,1.05391042,110170.0,110160.0,0.17602353]
[1756463337407,1.05391042,110170.0,110160.0,0.18138353]
[1756463337819,1.05391042,110170.0,110160.0,0.17602353]
[1756463339076,1.05391793,110170.0,110160.0,0.17602353]
[1756463339270,1.05393017,110170.0,110160.0,0.17602353]
[1756463340636,1.05393017,110170.0,110160.0,0.17816353]
[1756463340838,1.05393017,110170.0,110160.0,0.17602353]
[1756463343420,0.70678981,110170.0,110160.0,0.18138353]
[1756463343597,1.05192017,110170.0,110160.0,0.18138353]
[1756463344477,1.07630204,110170.0,110160.0,0.18138353]
[1756463345262,0.96362385,110170.0,110160.0,0.17547071]
[1756463346103,0.96172385,110170.0,110160.0,0.17547071]
[1756463346529,0.61458349,110170.0,110160.0,0.02263071]
[1756463346746,0.96172385,110170.0,110160.0,0.17543071]
[1756463348284,0.96373385,110170.0,110160.0,0.17543071]
[1756463348489,1.05203017,110170.0,110160.0,0.17543071]
[1756463348691,1.02655252,110170.0,110160.0,0.17543071]
[1756463348912,1.0521068,110170.0,110160.0,0.17543071]
[1756463349130,1.0521068,110170.0,110160.0,0.17007071]
[1756463349359,1.07648867,110170.0,110160.0,0.01727071]
[1756463349567,1.07648867,110170.0,110160.0,0.17007071]
[1756463350909,0.72733831,110170.0,110160.0,0.17543071]
[1756463351117,1.07447867,110170.0,110160.0,0.17543071]
[1756463351309,0.70295644,110170.0,110160.0,0.17543071]
[1756463351588,1.0500968,110170.0,110160.0,0.35698481]
[1756463351795,0.70295644,110170.0,110160.0,0.35698481]
[1756463352008,1.0500968,110170.0,110160.0,0.35698481]
[1756463352208,1.0490968,110170.0,110160.0,0.35698481]
[1756463352413,1.04910118,110170.0,110160.0,0.35698481]
[1756463353024,1.04810118,110170.0,110160.0,0.35698481]
[1756463354053,0.70096082,110170.0,110160.0,0.35698481]
[1756463354310,1.04810118,110170.0,110160.0,0.35698481]
[1756463354862,1.04810118,110170.0,110160.0,0.17543071]
[1756463355251,0.70096082,110170.0,110160.0,0.17543071]
[1756463355456,1.04810118,110170.0,110160.0,0.17543071]
[1756463355651,0.6126645,110170.0,110160.0,0.35698481]
[1756463356300,0.95980486,110170.0,110160.0,0.35698481]
[1756463356523,0.6126645,110170.0,110160.0,0.35698481]
[1756463358845,0.6126645,110170.0,110160.0,0.20418481]
[1756463359054,0.96181486,110170.0,110160.0,0.02263071]
[1756463359264,1.05011118,110170.0,110160.0,0.17007071]
[1756463359467,1.03307113,110170.0,110160.0,0.17539071]
[1756463359684,1.05010791,110170.0,110160.0,0.17539071]
[1756463359855,1.04809791,110170.0,110160.0,0.17539071]
[1756463360071,1.0480976,110170.0,110160.0,0.17539071]
[1756463360809,0.70095724,110170.0,110160.0,0.17539071]
[1756463361011,1.0480976,110170.0,110160.0,0.17539071]
[1756463362021,0.70095724,110170.0,110160.0,0.17539071]
[1756463362224,1.0480976,110170.0,110160.0,0.17539071]
[1756463362402,1.0480976,110170.0,110160.0,0.02259071]
[1756463362646,1.0480976,110170.0,110160.0,0.17539071]
[1756463363810,1.0500776,110170.0,110160.0,0.01727071]
[1756463363996,1.0531076,110170.0,110160.0,0.17007071]
[1756463364707,1.0500776,110170.0,110160.0,0.17007071]
[1756463364913,1.03388747,110170.0,110160.0,0.17539071]
[1756463365098,0.59845079,110170.0,110160.0,0.17539071]
[1756463365255,0.94559115,110170.0,110160.0,0.17539071]
[1756463366103,0.59845079,110170.0,110160.0,0.17539071]
[1756463366532,0.94559115,110170.0,110160.0,0.17539071]
[1756463366865,0.94559115,110170.0,110160.0,0.02259071]
[1756463367065,1.03388747,110170.0,110160.0,0.17539071]
[1756463367272,1.03586747,110170.0,110160.0,0.17539071]
[1756463367836,1.03388747,110170.0,110160.0,0.17539071]
[1756463368039,1.03587747,110170.0,110160.0,0.17539071]
[1756463368454,1.01245221,110170.0,110160.0,0.17539071]
[1756463369433,1.01046221,110170.0,110160.0,0.17539071]
[1756463369634,1.00393382,110170.0,110160.0,0.17539071]
[1756463370438,0.65679346,110170.0,110160.0,0.17539071]
[1756463370640,1.00393382,110170.0,110160.0,0.17539071]
[1756463370866,1.00393382,110170.0,110160.0,0.35694481]
[1756463370867,0.65480346,110170.0,110160.0,0.35694481]
[1756463371065,0.56650714,110170.0,110160.0,0.35694481]
[1756463371240,0.93707184,110170.0,110160.0,0.17539071]
[1756463372340,0.92003595,110170.0,110160.0,0.17539071]
[1756463372791,0.92003595,110170.0,110160.0,0.35694481]
[1756463372996,0.9136475,110170.0,110160.0,0.35694481]
[1756463373642,0.9823793,110170.0,110160.0,0.35694481]
[1756463374058,0.64162833,110170.0,110160.0,0.35694481]
[1756463375095,0.63523894,110170.0,110160.0,0.35694481]
[1756463375433,0.6671874,110170.0,110160.0,0.35694481]
[1756463376892,0.66718449,110170.0,110160.0,0.35694481]
[1756463377095,0.57888817,110170.0,110160.0,0.35694481]
[1756463381765,0.39735055,110170.0,110160.0,0.35694481]
[1756463383024,0.57888817,110170.0,110160.0,0.35694481]
[1756463384040,0.5788887,110170.0,110160.0,0.35694481]
[1756463384606,0.5788887,110170.0,110160.0,0.20414481]
[1756463384857,0.5788887,110170.0,110160.0,0.35690481]
[1756463385062,0.5788887,110170.0,110160.0,0.35790481]
[1756463385299,0.5788887,110170.0,110160.0,0.20514481]
[1756463385510,0.5788887,110170.0,110160.0,0.20614481]
[1756463385718,0.5788887,110170.0,110160.0,0.35890481]
[1756463387655,0.56185127,110170.0,110160.0,0.35890481]
[1756463387869,0.57888973,110170.0,110160.0,0.35890481]
[1756463388598,0.58086973,110170.0,110160.0,0.35890481]
[1756463390341,0.57888973,110170.0,110160.0,0.35890481]
[1756463392004,0.58087973,110170.0,110160.0,0.35890481]
[1756463392151,0.58087973,110170.0,110160.0,0.35574481]
[1756463392662,0.58087973,110170.0,110160.0,0.35868481]
[1756463393770,0.58087973,110170.0,110160.0,0.17713071]
[1756463394186,0.58087973,110170.0,110160.0,0.35574481]
[1756463394381,0.92802009,110170.0,110160.0,0.35574481]
[1756463394587,0.92802009,110170.0,110160.0,0.35868481]
[1756463394778,0.58087973,110170.0,110160.0,0.35868481]
[1756463394974,0.92802009,110170.0,110160.0,0.35868481]
[1756463395177,0.92802009,110170.0,110160.0,0.35768481]
[1756463395382,0.58087973,110170.0,110160.0,0.35768481]
[1756463396232,0.58087973,110170.0,110160.0,0.17419071]
[1756463396442,0.58087973,110170.0,110160.0,0.35358481]
[1756463396863,0.58087973,110170.0,110160.0,0.17203071]
[1756463397064,0.58087973,110170.0,110160.0,0.35358481]
[1756463397222,0.58087973,110170.0,110160.0,0.35652481]
[1756463397631,0.58087973,110170.0,110160.0,0.35552481]
[1756463397828,0.58087973,110170.0,110160.0,0.17297071]
[1756463398040,0.58087973,110170.0,110160.0,0.17003071]
[1756463398244,0.66917605,110170.0,110160.0,0.17003071]
[1756463398443,0.6691911,110170.0,110160.0,0.17003071]
[1756463398752,1.01633146,110170.0,110160.0,0.35158481]
[1756463398955,1.01633146,110170.0,110160.0,0.35374481]
[1756463399158,1.01633146,110170.0,110160.0,0.35668481]
[1756463399390,1.01664728,110170.0,110160.0,0.35668481]
[1756463399987,0.56294596,110170.0,110160.0,0.35668481]
[1756463400195,0.53729579,110170.0,110160.0,0.02237071]
[1756463400396,0.8621218,110170.0,110160.0,0.01727071]
[1756463400568,0.1815541,110160.0,110150.0,0.08707071]
[1756463400807,0.21852626,110160.0,110150.0,0.23983071]
[1756463401025,0.85912828,110160.0,110150.0,0.23983071]
[1756463401234,0.21551626,110160.0,110150.0,0.23983071]
[1756463401424,0.56462727,110160.0,110150.0,0.42650129]
[1756463402058,0.90262727,110160.0,110150.0,0.24493071]
[1756463402433,0.90460727,110160.0,110150.0,0.24493071]
[1756463402620,0.90560727,110160.0,110150.0,0.24493071]
[1756463403038,0.90460727,110160.0,110150.0,0.24493071]
[1756463403441,0.90467501,110160.0,110150.0,0.23983071]
[1756463404084,0.93033672,110160.0,110150.0,0.23983071]
[1756463404244,0.93133672,110160.0,110150.0,0.24277071]
[1756463404415,0.92935672,110160.0,110150.0,0.24493071]
[1756463404621,0.92835672,110160.0,110150.0,0.24493071]
[1756463404878,1.01863304,110160.0,110150.0,0.09217071]
[1756463405100,1.01863304,110160.0,110150.0,0.08707071]
[1756463405633,1.01863304,110160.0,110150.0,0.23983071]
[1756463405856,1.01863304,110160.0,110150.0,0.24493071]
[1756463406067,0.58082126,110160.0,110150.0,0.42650129]
[1756463406270,0.92835672,110160.0,110150.0,0.24493071]
[1756463406472,0.93033672,110160.0,110150.0,0.24493071]
[1756463406784,0.58280126,110160.0,110150.0,0.24493071]
[1756463406985,0.93033672,110160.0,110150.0,0.24493071]
[1756463407430,1.01863304,110160.0,110150.0,0.08707071]
[1756463407648,1.01863304,110160.0,110150.0,0.23983071]
[1756463407858,1.00158655,110160.0,110150.0,0.08707071]
[1756463408031,1.01859693,110160.0,110150.0,0.23983071]
[1756463408438,1.01859548,110160.0,110150.0,0.23983071]
[1756463409249,1.01859548,110160.0,110150.0,0.08707071]
[1756463409449,1.02162548,110160.0,110150.0,0.23983071]
[1756463409654,1.02162548,110160.0,110150.0,0.01727071]
[1756463410001,1.02162548,110160.0,110150.0,0.17003071]
[1756463411618,1.01859548,110160.0,110150.0,0.17003071]
[1756463412155,1.01859548,110160.0,110150.0,0.17219071]
[1756463412156,0.67106002,110160.0,110150.0,0.17219071]
[1756463412363,0.93029916,110160.0,110150.0,0.02237071]
[1756463412566,0.93029916,110160.0,110150.0,0.17003071]
[1756463416865,0.93029916,110160.0,110150.0,0.01727071]
[1756463417085,0.93029916,110160.0,110150.0,0.17003071]
[1756463418583,0.92391395,110160.0,110150.0,0.17003071]
[1756463418766,0.93028736,110160.0,110150.0,0.17003071]
[1756463418922,1.01858368,110160.0,110150.0,0.17003071]
[1756463423422,0.67104822,110160.0,110150.0,0.17510071]
[1756463423659,0.93032389,110160.0,110150.0,0.35667129]
[1756463423900,0.90263939,110160.0,110150.0,0.17510071]
[1756463424356,1.22450688,110160.0,110150.0,0.17510071]
[1756463425157,1.22648688,110160.0,110150.0,0.17510071]
[1756463426026,1.22951688,110160.0,110150.0,0.17003071]
[1756463426242,1.3147832,110160.0,110150.0,0.17003071]
[1756463427310,1.33440555,110160.0,110150.0,0.17003071]
[1756463427786,0.90263939,110160.0,110150.0,0.35667129]
[1756463427992,0.90263939,110160.0,110150.0,0.42651129]
[1756463428461,0.90263939,110160.0,110150.0,0.4239905]
[1756463429298,0.89412931,110160.0,110150.0,0.4239905]
[1756463429530,0.92233836,110160.0,110150.0,0.4239905]
[1756463430874,0.92233836,110160.0,110150.0,0.24241992]
[1756463431094,0.92233837,110160.0,110150.0,0.24241992]
[1756463431525,1.01063469,110160.0,110150.0,0.24241992]
[1756463435550,1.0106351,110160.0,110150.0,0.4239905]
[1756463436047,1.0106351,110160.0,110150.0,0.24241992]
[1756463437412,1.0126151,110160.0,110150.0,0.08965992]
[1756463437656,1.33448259,110160.0,110150.0,0.23730992]
[1756463440419,1.33751404,110160.0,110150.0,0.08458992]
[1756463440641,0.18158707,110140.0,110130.0,0.07289]
[1756463440863,1.19930388,110140.0,110130.0,0.06984]
[1756463441069,1.19930388,110140.0,110130.0,0.23730992]
[1756463441484,1.22693168,110140.0,110130.0,0.23730992]
[1756463441690,1.22693168,110140.0,110130.0,0.41891347]
[1756463441892,0.74897846,110140.0,110130.0,0.41905681]
[1756463442304,0.74897846,110140.0,110130.0,0.42005681]
[1756463442526,0.93056553,110140.0,110130.0,0.42005681]
[1756463442735,0.93056553,110140.0,110130.0,0.41905681]
[1756463443162,0.93056553,110140.0,110130.0,0.42005681]
[1756463443615,0.93056553,110140.0,110130.0,0.42105681]
[1756463443819,0.95558098,110140.0,110130.0,0.42105681]
[1756463444027,0.96196948,110140.0,110130.0,0.42005681]
[1756463444610,0.78038241,110140.0,110130.0,0.42612681]
[1756463444812,0.43068478,110140.0,110130.0,0.42612681]
[1756463445223,0.43068478,110140.0,110130.0,0.48780263]
[1756463445368,0.43068478,110140.0,110130.0,0.83549026]
[1756463445586,0.05927451,110140.0,110130.0,0.42612681]
[1756463445808,0.40696214,110140.0,110130.0,0.42612681]
[1756463446244,0.09092019,110140.0,110130.0,0.42612681]
[1756463447290,0.09091767,110140.0,110130.0,0.42612681]
[1756463448097,0.09289767,110140.0,110130.0,0.27340681]
[1756463448307,0.50648342,110140.0,110130.0,0.40886689]
[1756463448518,0.50345342,110140.0,110130.0,0.42361681]
[1756463448731,0.68504049,110140.0,110130.0,0.42361681]
[1756463449145,0.50345342,110140.0,110130.0,0.42361681]
[1756463449347,0.4405853,110140.0,110130.0,0.42361681]
[1756463450783,0.44055017,110140.0,110130.0,0.42361681]
[1756463451024,0.96213724,110140.0,110130.0,0.26833681]
[1756463451238,0.94806932,110140.0,110130.0,0.42389681]
[1756463451437,0.96509618,110140.0,110130.0,0.42389681]
[1756463451696,1.0504325,110140.0,110130.0,0.42389681]
[1756463453559,0.5211578,110140.0,110130.0,0.42389681]
[1756463453768,0.43088148,110140.0,110130.0,0.77667444]
[1756463454395,0.43087908,110140.0,110130.0,0.77667444]
[1756463457085,0.43087908,110140.0,110130.0,0.42898681]
[1756463457883,0.43087908,110140.0,110130.0,0.77667444]
[1756463459297,0.43087908,110140.0,110130.0,0.42898681]
[1756463460536,0.43292908,110140.0,110130.0,0.42898681]
[1756463460736,0.5212254,110140.0,110130.0,0.42898681]
[1756463460964,0.49576276,110140.0,110130.0,0.42898681]
[1756463461211,0.43087378,110140.0,110130.0,0.42898681]
[1756463461400,0.43087378,110140.0,110130.0,0.77667444]
[1756463461842,0.43087381,110140.0,110130.0,0.77667444]
[1756463462481,0.03191913,110140.0,110130.0,0.77667444]
[1756463466915,0.03191913,110140.0,110130.0,0.27342681]
[1756463467166,0.03396913,110140.0,110130.0,0.42874681]
[1756463467824,0.44100603,110140.0,110130.0,0.26833681]
[1756463468026,0.9655531,110140.0,110130.0,0.42373681]
[1756463468240,0.9928631,110140.0,110130.0,0.08673326]
[1756463468442,0.9928631,110140.0,110130.0,0.01689326]
[1756463468659,0.9928631,110140.0,110130.0,0.17233326]
[1756463468876,1.0266958,110140.0,110130.0,0.17233326]
[1756463469104,1.0266958,110140.0,110130.0,0.01689326]
[1756463469297,1.0266958,110140.0,110130.0,0.17233326]
[1756463469630,1.0266958,110140.0,110130.0,0.01689326]
[1756463470063,1.0266958,110140.0,110130.0,0.17129326]
[1756463470305,1.0266958,110140.0,110130.0,0.17029326]
[1756463470910,0.4924111,110140.0,110130.0,0.35698681]
[1756463471173,0.41345495,110140.0,110130.0,0.42682681]
[1756463471369,0.07345495,110140.0,110130.0,0.42682681]
[1756463472480,0.42114258,110140.0,110130.0,0.27142681]
[1756463472688,0.42319258,110140.0,110130.0,0.42694681]
[1756463472892,0.42114258,110140.0,110130.0,0.42694681]
[1756463473099,0.5114889,110140.0,110130.0,0.42694681]
[1756463473450,0.5114889,110140.0,110130.0,0.42794681]
[1756463473913,0.42319258,110140.0,110130.0,0.42794681]
[1756463474165,0.07345495,110140.0,110130.0,0.42794681]
[1756463474490,0.07345495,110140.0,110130.0,0.42894681]
[1756463474711,0.07345495,110140.0,110130.0,0.42890681]
[1756463474929,0.60477965,110140.0,110130.0,0.08673326]
[1756463475141,0.68182312,110140.0,110130.0,0.08673326]
[1756463475351,0.68182312,110140.0,110130.0,0.24245326]
[1756463475872,0.68182312,110140.0,110130.0,0.42914681]
[1756463475873,0.32912549,110140.0,110130.0,0.42914681]
[1756463476090,0.24082917,110140.0,110130.0,0.42914681]
[1756463476291,0.5905668,110140.0,110130.0,0.42814681]
[1756463476519,0.5905668,110140.0,110130.0,0.24149326]
[1756463476941,0.5905668,110140.0,110130.0,0.24049326]
[1756463477801,0.5905668,110140.0,110130.0,0.42209681]
[1756463477802,0.24287917,110140.0,110130.0,0.42209681]
[1756463477978,0.5905668,110140.0,110130.0,0.42209681]
[1756463478187,0.5905668,110140.0,110130.0,0.24049326]
[1756463478391,0.67886312,110140.0,110130.0,0.24049326]
[1756463478608,0.67886312,110140.0,110130.0,0.17065326]
[1756463478815,0.68180312,110140.0,110130.0,0.17065326]
[1756463479223,0.67886312,110140.0,110130.0,0.17065326]
[1756463480239,0.67886312,110140.0,110130.0,0.01489326]
[1756463480449,0.67886312,110140.0,110130.0,0.17069326]
[1756463481319,1.73679713,110140.0,110130.0,0.15594334]
[1756463481842,1.73679849,110140.0,110130.0,0.15594334]
[1756463482403,1.73679844,110140.0,110130.0,0.15590334]
[1756463482730,6.73679844,110140.0,110130.0,0.00014334]
[1756463483256,6.73679844,110140.0,110130.0,0.01489326]
[1756463484293,5.84957555,110140.0,110130.0,0.01489326]
[1756463484497,5.94813686,110140.0,110130.0,0.01489326]
[1756463484642,5.95314686,110140.0,110130.0,0.01489326]
[1756463485058,6.6627355,110140.0,110130.0,0.01489326]
[1756463485499,6.6627355,110140.0,110130.0,0.00014334]
[1756463485718,6.68725866,110140.0,110130.0,0.00014334]
[1756463486151,6.7755286,110140.0,110130.0,0.00014334]
[1756463486924,6.7765286,110140.0,110130.0,0.00014334]
[1756463487290,6.7755286,110140.0,110130.0,0.00014334]
[1756463487530,6.7765286,110140.0,110130.0,0.00014334]
[1756463487781,6.83988854,110140.0,110130.0,0.00014334]
[1756463487982,6.83988854,110140.0,110100.0,0.01514992]
[1756463487983,0.52163654,110110.0,110100.0,0.01514992]
[1756463488152,1.68492916,110110.0,110100.0,0.04761294]
[1756463488365,1.68699916,110110.0,110100.0,0.17117294]
[1756463488693,1.03315883,110110.0,110100.0,0.17117294]
[1756463488934,1.72853409,110110.0,110100.0,0.17117294]
[1756463489554,1.03315883,110110.0,110100.0,0.17117294]
[1756463490926,1.03315883,110110.0,110100.0,0.17518294]
[1756463492163,1.03315883,110110.0,110100.0,0.17818294]
[1756463492366,1.00971474,110110.0,110100.0,0.17818294]
[1756463492564,1.03306038,110110.0,110100.0,0.17317294]
[1756463492814,1.02457106,110110.0,110100.0,0.17317294]
[1756463493014,1.03306038,110110.0,110100.0,0.17317294]
[1756463493435,1.03600038,110110.0,110100.0,0.17301294]
[1756463493676,1.03306038,110110.0,110100.0,0.17301294]
[1756463494896,0.68330275,110110.0,110100.0,0.17802294]
[1756463495326,1.03099038,110110.0,110100.0,0.17802294]
[1756463495870,0.94269406,110110.0,110100.0,0.17802294]
[1756463496249,0.94269219,110110.0,110100.0,0.17802294]
[1756463496668,0.59500456,110110.0,110100.0,0.17802294]
[1756463496806,0.942691,110110.0,110100.0,0.17802294]
[1756463497908,0.944761,110110.0,110100.0,0.17802294]
[1756463498136,0.944761,110110.0,110100.0,0.17301294]
[1756463498352,1.03305732,110110.0,110100.0,0.17301294]
[1756463499044,1.03305732,110110.0,110100.0,0.01729294]
[1756463499249,1.73137258,110110.0,110100.0,0.01729294]
[1756463499807,1.75093094,110110.0,110100.0,0.01729294]
[1756463503243,1.72758717,110110.0,110100.0,0.01729294]
[1756463503441,1.75093762,110110.0,110100.0,0.01729294]
[1756463504824,1.75093762,110110.0,110100.0,0.00254302]
[1756463505023,1.73672069,110110.0,110100.0,0.01729294]
[1756463506305,1.89212069,110110.0,110100.0,0.01729294]
[1756463506494,6.89212069,110110.0,110100.0,0.00254302]
[1756463506719,6.91661691,110110.0,110100.0,0.00254302]
[1756463507115,6.94927854,110110.0,110100.0,0.00254302]
[1756463507498,6.96345696,110110.0,110100.0,0.00254302]
[1756463508043,6.96345696,110110.0,110100.0,0.00054302]
[1756463508541,6.96745696,110110.0,110100.0,0.00054302]
[1756463508794,6.96541696,110110.0,110100.0,0.00054302]
[1756463509189,6.59475533,110110.0,110100.0,0.00054302]
[1756463509607,6.43649533,110110.0,110100.0,0.00054302]
[1756463509811,6.43944533,110110.0,110100.0,0.00054302]
[1756463510515,6.43947074,110110.0,110100.0,0.00054302]
[1756463511084,6.77947074,110110.0,110100.0,0.00054302]
[1756463511283,6.9664682,110110.0,110100.0,0.00054302]
[1756463511922,6.79696978,110110.0,110100.0,0.00054302]
[1756463512100,6.92049232,110110.0,110100.0,0.00054302]
[1756463513413,6.91758232,110110.0,110100.0,0.00054302]